bitfinex/quotes_SOLUSD_20250823
["timestamp","ask_amount","ask_price","bid_price","bid_amount"]
[1755952444160,58.87338928,202.71,202.7,3.6027605]
[1755952444361,58.87338928,202.71,202.7,0.03]
[1755952444791,63.80654501,202.71,202.7,0.03]
[1755952445094,58.87338928,202.71,202.7,0.03]
[1755952445468,63.80654501,202.71,202.7,0.03]
[1755952445672,64.33654501,202.71,202.7,0.03]
[1755952445863,10.266695,202.71,202.7,0.03]
[1755952446063,58.87338928,202.71,202.7,0.03]
[1755952448075,48.606695,202.71,202.7,0.03]
[1755952448292,58.87338928,202.71,202.7,0.03]
[1755952449283,63.80654501,202.71,202.7,0.03]
[1755952449967,77.93213902,202.71,202.7,0.03]
[1755952450761,44.52923651,202.69,202.68,0.03]
[1755952450989,83.15355965,202.69,202.68,0.03]
[1755952451194,93.95025393,202.69,202.68,0.03]
[1755952452279,26.0,202.66,202.65,0.03]
[1755952452487,88.48661143,202.66,202.65,0.03]
[1755952452672,89.01661143,202.66,202.65,0.03]
[1755952453394,88.48661143,202.66,202.65,0.03]
[1755952453576,90.46314043,202.66,202.65,0.03]
[1755952454179,95.92751327,202.66,202.65,0.03]
[1755952458372,26.0,202.62,202.61,0.03]
[1755952458574,93.42195838,202.62,202.61,0.03]
[1755952458807,93.95195838,202.62,202.61,0.03]
[1755952459007,95.92897538,202.62,202.61,0.03]
[1755952459301,85.1322811,202.62,202.61,0.03]
[1755952459493,95.39897538,202.62,202.61,0.03]
[1755952460205,100.33234128,202.62,202.61,0.03]
[1755952460978,100.86234128,202.62,202.61,0.03]
[1755952461997,100.33234128,202.62,202.61,0.03]
[1755952464301,100.35234128,202.62,202.61,0.03]
[1755952465904,100.88234128,202.62,202.61,0.03]
[1755952466398,100.35234128,202.62,202.61,0.03]
[1755952466979,46.79030005,202.62,202.61,0.75]
[1755952467185,95.41699433,202.62,202.61,0.75]
[1755952468781,100.35234128,202.62,202.61,0.03]
[1755952469779,61.99234128,202.62,202.61,0.03]
[1755952469994,100.35234128,202.62,202.61,0.03]
[1755952473791,92.56559401,202.6,202.59,0.03]
[1755952473986,62.22228829,202.6,202.59,0.73]
[1755952474604,64.19930529,202.6,202.59,0.73]
[1755952474780,25.83930529,202.6,202.59,0.73]
[1755952474981,64.19930529,202.6,202.59,0.73]
[1755952476076,30.77513944,202.6,202.59,0.73]
[1755952476404,69.13513944,202.6,202.59,0.73]
[1755952477094,30.77513944,202.6,202.59,0.73]
[1755952477288,30.77513944,202.6,202.59,0.03]
[1755952477488,69.13513944,202.6,202.59,0.03]
[1755952477894,69.13513944,202.6,202.59,0.73]
[1755952479706,64.19930529,202.6,202.59,0.73]
[1755952479883,50.60371128,202.6,202.59,0.73]
[1755952480508,69.13513944,202.6,202.59,0.03]
[1755952480700,69.41946258,202.6,202.59,0.03]
[1755952480901,69.94946258,202.6,202.59,0.03]
[1755952481120,69.41946258,202.6,202.59,0.03]
[1755952481682,31.05946258,202.6,202.59,0.03]
[1755952482102,69.41946258,202.6,202.59,0.03]
[1755952482419,69.41946258,202.6,202.59,0.73]
[1755952482720,95.41946258,202.6,202.59,0.03]
[1755952484615,69.41946258,202.6,202.59,0.03]
[1755952484814,31.05946258,202.6,202.59,0.03]
[1755952485110,69.41946258,202.6,202.59,0.03]
[1755952485614,95.41946258,202.6,202.59,0.73]
[1755952485815,76.60371128,202.6,202.59,0.73]
[1755952486118,50.60371128,202.6,202.59,0.73]
[1755952486314,40.337017,202.6,202.59,0.73]
[1755952486507,50.60371128,202.6,202.59,0.73]
[1755952488305,55.53954543,202.6,202.59,0.73]
[1755952489425,50.60371128,202.6,202.59,0.73]
[1755952491417,55.53954543,202.6,202.59,0.73]
[1755952491614,69.41946258,202.6,202.59,0.03]
[1755952493423,31.05946258,202.6,202.59,0.03]
[1755952493646,69.39946258,202.6,202.59,0.03]
[1755952498317,69.92946258,202.6,202.59,0.03]
[1755952499235,73.89465097,202.6,202.59,0.03]
[1755952500133,73.36465097,202.6,202.59,0.03]
[1755952500344,73.89465097,202.6,202.59,0.03]
[1755952500644,39.87991715,202.57,202.56,0.03]
[1755952500821,39.87991715,202.57,202.54,0.03]
[1755952500822,13.87991715,202.56,202.54,0.03]
[1755952501139,62.20228829,202.55,202.54,0.03]
[1755952501321,69.11713986,202.55,202.54,0.03]
[1755952501522,148.11713986,202.55,202.54,0.03]
[1755952501837,137.85044558,202.55,202.54,0.03]
[1755952502034,148.11713986,202.55,202.54,0.03]
[1755952502414,109.77713986,202.55,202.54,0.03]
[1755952502626,80.977799,202.55,202.54,0.69]
[1755952502827,119.317799,202.55,202.54,0.69]
[1755952504228,119.317799,202.55,202.54,10.95669428]
[1755952506434,80.977799,202.55,202.54,10.95669428]
[1755952506630,119.317799,202.55,202.54,10.95669428]
[1755952507235,80.977799,202.55,202.54,10.95669428]
[1755952507534,0.06,202.66,202.54,36.95669428]
[1755952507736,10.956694,202.58,202.56,10.26669428]
[1755952507941,38.34,202.62,202.59,26.0]
[1755952508235,38.34,202.63,202.6,3.71316313]
[1755952508434,38.34,202.63,202.54,10.03]
[1755952508435,38.34,202.63,202.61,3.71316313]
[1755952508643,38.34,202.63,202.62,0.66]
[1755952508935,38.34,202.63,202.62,10.92669428]
[1755952509932,10.266694,202.64,202.62,10.92669428]
[1755952510255,0.06,202.66,202.63,0.66]
[1755952510548,48.606694,202.65,202.64,0.66]
[1755952510753,10.266694,202.65,202.54,0.03]
[1755952510924,48.606694,202.65,202.61,0.66]
[1755952511126,49.266694,202.65,202.6,0.66]
[1755952511323,64.46804074,202.65,202.6,0.66]
[1755952511630,59.53338828,202.65,202.61,0.66]
[1755952513309,10.92669428,202.64,202.58,10.92669428]
[1755952513537,10.92669428,202.64,202.58,0.66]
[1755952513538,127.60669428,202.63,202.58,0.66]
[1755952513742,127.60669428,202.63,202.56,0.66]
[1755952513743,10.26669428,202.61,202.56,0.66]
[1755952513913,38.34,202.6,202.55,10.26669428]
[1755952514115,38.34,202.6,202.57,0.66]
[1755952514316,48.606694,202.6,202.58,0.66]
[1755952514530,48.606694,202.6,202.56,10.26669428]
[1755952514531,10.266694,202.6,202.59,0.66]
[1755952514733,48.606694,202.6,202.59,0.66]
[1755952515347,48.586694,202.6,202.59,0.66]
[1755952516312,48.586694,202.6,202.59,10.92669428]
[1755952516513,10.266694,202.6,202.59,10.92669428]
[1755952517158,79.0,202.63,202.59,10.92669428]
[1755952517319,38.32,202.62,202.59,0.66]
[1755952517518,38.32,202.62,202.6,3.04281981]
[1755952517718,53.139571,202.63,202.61,0.66]
[1755952518232,38.32,202.63,202.62,0.66]
[1755952518436,53.139571,202.63,202.62,10.92669428]
[1755952518748,38.32,202.63,202.62,10.92669428]
[1755952518947,53.139572,202.63,202.62,10.92669428]
[1755952519428,38.32,202.63,202.62,10.92669428]
[1755952519820,38.32,202.63,202.62,0.66]
[1755952520046,53.139572,202.64,202.62,10.92669428]
[1755952520246,53.139572,202.64,202.63,10.92669428]
[1755952520424,38.32,202.65,202.63,10.92669428]
[1755952520747,53.13884,202.65,202.64,10.92669428]
[1755952521115,53.13884,202.65,202.64,0.66]
[1755952521314,53.13884,202.65,202.63,10.26669428]
[1755952521517,53.13884,202.65,202.62,10.26669428]
[1755952521729,53.13884,202.65,202.61,10.26669428]
[1755952521928,53.13884,202.65,202.59,10.92669428]
[1755952521929,0.66,202.64,202.59,10.92669428]
[1755952522143,38.32,202.63,202.6,0.66]
[1755952523928,38.32,202.63,202.59,10.26669428]
[1755952523929,38.98,202.63,202.59,10.26669428]
[1755952524126,14.821769,202.62,202.59,10.92669428]
[1755952524332,38.32,202.61,202.6,10.26669428]
[1755952524552,38.32,202.61,202.6,10.92669428]
[1755952526452,53.141769,202.62,202.6,10.92669428]
[1755952526752,53.141769,202.62,202.61,10.92669428]
[1755952527048,38.32,202.62,202.61,10.92669428]
[1755952528146,38.32,202.64,202.61,10.92669428]
[1755952528322,38.32,202.64,202.58,26.0]
[1755952528323,14.818839,202.65,202.63,10.26669428]
[1755952528524,53.138839,202.65,202.64,10.92669428]
[1755952528847,38.32,202.65,202.64,10.92669428]
[1755952529048,53.138107,202.65,202.64,10.92669428]
[1755952529254,38.32,202.65,202.64,10.92669428]
[1755952530047,53.138108,202.65,202.64,10.92669428]
[1755952530359,0.06,202.66,202.64,10.92669428]
[1755952530529,0.06,202.66,202.65,10.92669428]
[1755952530935,0.06,202.66,202.65,0.66]
[1755952531230,0.06,202.66,202.65,10.92669428]
[1755952533728,0.06,202.66,202.65,0.66]
[1755952533950,0.06,202.66,202.65,10.92669428]
[1755952535327,0.06,202.66,202.65,10.26669428]
[1755952537348,0.06,202.66,202.65,10.92669428]
[1755952541054,0.06,202.66,202.65,10.26669428]
[1755952542564,0.06,202.66,202.65,10.92669428]
[1755952543762,0.06,202.66,202.65,10.26669428]
[1755952544441,0.06,202.66,202.65,10.92669428]
[1755952547439,0.06,202.66,202.62,13.59559401]
[1755952547636,0.06,202.66,202.65,10.26669428]
[1755952548044,0.06,202.66,202.65,10.92669428]
[1755952549363,0.06,202.66,202.65,10.26669428]
[1755952549948,0.77,202.66,202.65,10.26669428]
[1755952550263,0.06,202.66,202.65,10.26669428]
[1755952550772,0.06,202.66,202.65,10.92669428]
[1755952552145,0.06,202.66,202.65,14.03531037]
[1755952554692,0.06,202.66,202.65,13.37531037]
[1755952555251,0.06,202.66,202.65,3.10861609]
[1755952555466,0.06,202.66,202.65,13.37531037]
[1755952556072,0.06,202.66,202.65,13.8491793]
[1755952557073,0.06,202.66,202.65,3.58248502]
[1755952557382,0.06,202.66,202.65,13.8491793]
[1755952560475,0.06,202.66,202.65,3.58248502]
[1755952560767,0.06,202.66,202.65,13.8491793]
[1755952562471,0.06,202.66,202.65,14.5191793]
[1755952564179,0.06,202.66,202.65,13.8491793]
[1755952564377,0.06,202.66,202.65,10.26669428]
[1755952564566,0.06,202.66,202.65,13.85489501]
[1755952565278,0.06,202.66,202.65,13.8548952]
[1755952565471,0.06,202.66,202.65,14.5248952]
[1755952565664,0.06,202.66,202.65,4.25820092]
[1755952565865,0.06,202.66,202.65,14.5248952]
[1755952567787,0.06,202.66,202.65,14.52382219]
[1755952570366,0.06,202.66,202.65,28.1194162]
[1755952570669,0.06,202.67,202.66,39.59559401]
[1755952570881,0.06,202.67,202.66,53.4494162]
[1755952571086,0.06,202.67,202.66,54.1194162]
[1755952573897,0.06,202.67,202.66,50.53228829]
[1755952574081,0.06,202.67,202.66,54.11917625]
[1755952574586,0.06,202.67,202.66,92.39917625]
[1755952577386,0.06,202.67,202.66,66.39917625]
[1755952579890,0.06,202.69,202.68,26.0]
[1755952580100,0.06,202.69,202.68,78.11358224]
[1755952580484,0.06,202.69,202.68,78.78358224]
[1755952581178,0.06,202.69,202.68,78.11358224]
[1755952581502,0.06,202.69,202.68,78.78358224]
[1755952583298,0.06,202.69,202.68,75.19669428]
[1755952583484,0.06,202.69,202.68,78.10882597]
[1755952584470,0.06,202.69,202.68,78.77882597]
[1755952584867,0.06,202.69,202.68,78.10882597]
[1755952585097,0.06,202.69,202.68,78.77882597]
[1755952585390,0.06,202.69,202.68,78.10882597]
[1755952585574,0.06,202.69,202.68,78.77882597]
[1755952586597,0.06,202.69,202.68,78.10882597]
[1755952587193,0.06,202.69,202.68,40.51882597]
[1755952587393,0.06,202.69,202.68,78.77882597]
[1755952587582,0.06,202.69,202.68,40.51882597]
[1755952587779,0.06,202.69,202.68,78.75882597]
[1755952587978,0.06,202.69,202.68,92.35441998]
[1755952588194,0.06,202.7,202.69,13.59559401]
[1755952588382,0.06,202.7,202.69,28.15441998]
[1755952589098,0.06,202.73,202.72,39.59559401]
[1755952589273,0.06,202.73,202.72,101.95111426]
[1755952589593,0.06,202.74,202.73,13.59559401]
[1755952589806,0.06,202.74,202.73,28.15441998]
[1755952590770,0.06,202.77,202.75,39.59559401]
[1755952590970,0.06,202.77,202.75,91.68441998]
[1755952591298,0.06,202.79,202.76,28.15441998]
[1755952591495,0.06,202.79,202.77,78.08882597]
[1755952591800,0.06,202.79,202.77,78.79882597]
[1755952592524,0.06,202.79,202.77,75.21669428]
[1755952592677,0.06,202.79,202.77,78.77859458]
[1755952593269,0.06,202.79,202.77,78.06859458]
[1755952593673,0.06,202.79,202.77,39.82859458]
[1755952593875,0.78,202.78,202.77,13.82859458]
[1755952596583,0.78,202.78,202.77,13.85859458]
[1755952596983,0.06,202.78,202.77,13.85859458]
[1755952598716,0.78,202.78,202.77,13.85859458]
[1755952599679,2.754382,202.78,202.77,13.85859458]
[1755952599906,0.78,202.78,202.77,3.5919003]
[1755952600112,0.78,202.78,202.77,13.85859458]
[1755952600288,3.534382,202.78,202.77,13.85859458]
[1755952600490,3.534382,202.78,202.77,3.5919003]
[1755952600999,3.534382,202.78,202.77,13.85859458]
[1755952601191,3.534382,202.78,202.77,13.84976897]
[1755952601399,0.06,202.78,202.77,13.84976897]
[1755952601800,0.06,202.78,202.77,10.29669428]
[1755952601991,0.06,202.78,202.77,13.8485338]
[1755952602497,0.78,202.78,202.77,13.84852097]
[1755952603390,0.06,202.78,202.77,13.84852097]
[1755952603899,0.78,202.78,202.77,13.84852097]
[1755952604100,0.06,202.78,202.77,13.84852097]
[1755952606808,0.78,202.78,202.77,13.84852097]
[1755952607011,0.78,202.78,202.77,3.58182669]
[1755952607199,0.78,202.78,202.77,0.03]
[1755952607517,0.78,202.78,202.77,3.58316535]
[1755952607819,4.374382,202.78,202.77,3.58316535]
[1755952608119,4.374382,202.78,202.77,13.84985963]
[1755952608120,3.654382,202.78,202.77,13.84985963]
[1755952608317,0.06,202.78,202.77,13.84985963]
[1755952609517,0.78,202.78,202.77,13.84985963]
[1755952609694,0.78,202.78,202.77,3.58316535]
[1755952610018,4.494382,202.78,202.77,3.58316535]
[1755952610197,4.494382,202.78,202.77,13.84985963]
[1755952610390,3.774382,202.78,202.77,13.84985963]
[1755952610598,4.494382,202.78,202.77,13.84985963]
[1755952611326,4.494382,202.78,202.77,10.29669428]
[1755952611620,4.494382,202.78,202.77,13.85314404]
[1755952612309,4.494382,202.78,202.77,3.58644976]
[1755952620820,4.494382,202.78,202.77,3.66392094]
[1755952621312,4.494382,202.78,202.77,3.66464501]
[1755952621922,14.76107628,202.78,202.77,3.66464501]
[1755952622242,14.76107628,202.78,202.77,0.03]
[1755952622243,19.97685222,202.78,202.77,0.03]
[1755952623033,33.57244623,202.78,202.77,0.03]
[1755952623994,23.30575195,202.78,202.77,0.03]
[1755952624201,33.57244623,202.78,202.77,0.03]
[1755952624802,28.64099343,202.78,202.77,0.03]
[1755952625035,66.84099343,202.78,202.77,0.03]
[1755952625618,28.64099343,202.78,202.77,0.03]
[1755952625827,66.84099343,202.78,202.77,0.03]
[1755952627130,42.634382,202.78,202.77,0.03]
[1755952627338,52.92107628,202.78,202.77,0.03]
[1755952627522,41.994382,202.78,202.77,0.03]
[1755952627914,3.774382,202.78,202.77,3.48202741]
[1755952628122,41.994382,202.78,202.77,4.17202741]
[1755952628410,41.994382,202.78,202.77,3.48202741]
[1755952629440,41.994382,202.78,202.77,4.17196528]
[1755952631627,3.774382,202.78,202.77,4.17196528]
[1755952633015,3.774382,202.78,202.77,3.48196528]
[1755952637008,4.434382,202.78,202.77,3.48196528]
[1755952637215,14.70107628,202.78,202.77,3.48196528]
[1755952637415,4.434382,202.78,202.77,3.48196528]
[1755952638036,3.774382,202.78,202.77,3.48196528]
[1755952638722,41.974382,202.78,202.77,3.48642721]
[1755952640042,41.974382,202.78,202.77,4.17642721]
[1755952641140,41.974382,202.78,202.77,3.48642721]
[1755952641813,41.974382,202.78,202.77,3.48567995]
[1755952642335,3.774382,202.78,202.77,3.48567995]
[1755952642542,41.974382,202.78,202.77,3.48567995]
[1755952642843,41.974382,202.78,202.77,4.17567995]
[1755952643440,41.974382,202.78,202.77,3.48567995]
[1755952644245,41.974382,202.78,202.77,4.17567995]
[1755952644425,41.974382,202.78,202.77,3.48567995]
[1755952644853,41.974382,202.78,202.77,3.48313371]
[1755952646826,42.634382,202.78,202.77,3.48313371]
[1755952647029,52.90107628,202.78,202.77,0.03]
[1755952648630,52.24107628,202.78,202.77,0.03]
[1755952648849,52.90107628,202.78,202.77,0.03]
[1755952649073,52.24107628,202.78,202.77,0.03]
[1755952649276,41.974382,202.78,202.77,0.03]
[1755952649954,41.974382,202.78,202.77,0.75]
[1755952650277,41.974382,202.78,202.77,3.99719686]
[1755952651254,0.06,202.78,202.77,14.26389114]
[1755952654178,0.06,202.78,202.77,3.99719686]
[1755952655678,0.06,202.78,202.77,14.26389114]
[1755952655861,0.06,202.78,202.77,3.99719686]
[1755952657260,0.06,202.78,202.77,0.75]
[1755952657482,0.06,202.78,202.77,3.99523756]
[1755952658280,0.06,202.78,202.77,14.26185806]
[1755952660466,0.06,202.78,202.77,14.26865829]
[1755952660962,0.06,202.78,202.77,3.28196401]
[1755952661374,0.06,202.78,202.77,4.00196401]
[1755952662192,0.06,202.78,202.77,14.26865829]
[1755952664203,0.06,202.78,202.77,40.26865829]
[1755952664795,0.06,202.78,202.77,53.8642523]
[1755952666795,0.06,202.78,202.77,53.85860914]
[1755952667185,0.06,202.78,202.77,53.85879961]
[1755952667384,0.06,202.78,202.77,50.61228829]
[1755952667588,0.06,202.78,202.77,53.85799858]
[1755952669794,0.06,202.78,202.77,53.8579719]
[1755952673704,1.6337,202.86,202.78,23.86228829]
[1755952673881,1.6337,202.86,202.82,10.26669428]
[1755952674084,1.6337,202.86,202.83,13.51237789]
[1755952674280,38.36,202.87,202.84,3.24568361]
[1755952674497,38.36,202.87,202.85,3.24568361]
[1755952674684,38.36,202.87,202.84,10.26669428]
[1755952674885,38.36,202.87,202.85,3.24435401]
[1755952675099,38.36,202.87,202.86,3.24435401]
[1755952675597,38.95,202.87,202.86,3.24435401]
[1755952675810,38.95,202.87,202.84,10.26669428]
[1755952676107,38.36,202.87,202.85,3.24282264]
[1755952676289,38.95,202.87,202.86,3.24282264]
[1755952676607,38.36,202.87,202.86,3.33957226]
[1755952678501,0.2,202.87,202.86,3.33957226]
[1755952679306,0.2,202.87,202.86,3.33844462]
[1755952681405,0.2,202.87,202.86,3.33960617]
[1755952682307,0.2,202.87,202.86,4.01960617]
[1755952682610,0.2,202.87,202.86,13.60630045]
[1755952682805,0.2,202.87,202.86,14.28630045]
[1755952683510,0.2,202.87,202.86,3.33960617]
[1755952684395,0.2,202.87,202.86,3.33759587]
[1755952684920,0.2,202.87,202.86,3.33752917]
[1755952685216,0.2,202.87,202.86,3.33661741]
[1755952687510,0.2,202.87,202.86,4.01661741]
[1755952688520,0.2,202.87,202.86,3.33661741]
[1755952688724,0.2,202.87,202.85,10.94669428]
[1755952690519,0.2,202.87,202.82,26.0]
[1755952690520,0.2,202.87,202.84,10.26669428]
[1755952690704,0.2,202.87,202.84,10.94669428]
[1755952690896,0.2,202.87,202.84,10.26669428]
[1755952691103,0.2,202.87,202.85,0.68]
[1755952691432,0.2,202.87,202.86,10.94669428]
[1755952691820,0.2,202.87,202.86,24.54228829]
[1755952693314,0.2,202.87,202.86,14.27559401]
[1755952693522,0.2,202.87,202.86,24.54228829]
[1755952694123,0.2,202.87,202.86,27.87816967]
[1755952694323,0.2,202.87,202.86,24.54228829]
[1755952694635,0.2,202.87,202.86,10.94669428]
[1755952694835,0.2,202.87,202.84,0.68]
[1755952695157,0.2,202.87,202.86,10.26669428]
[1755952696058,0.2,202.87,202.86,10.94669428]
[1755952696353,0.2,202.87,202.86,10.26669428]
[1755952696555,0.2,202.87,202.86,14.28621242]
[1755952698950,0.2,202.87,202.86,40.28621242]
[1755952701563,0.2,202.87,202.86,36.94669428]
[1755952701736,0.2,202.87,202.86,40.28302025]
[1755952702232,0.2,202.87,202.86,14.28302025]
[1755952703329,0.2,202.87,202.86,27.87861426]
[1755952704880,0.06,202.9,202.89,26.0]
[1755952705038,0.06,202.9,202.89,16.93191998]
[1755952705360,0.06,202.9,202.89,27.87861426]
[1755952705744,0.06,202.9,202.89,29.85143826]
[1755952706135,0.06,202.9,202.89,27.87861426]
[1755952706679,0.06,202.9,202.89,13.60302025]
[1755952706972,0.06,202.9,202.89,51.72302025]
[1755952707135,0.06,202.9,202.89,13.60302025]
[1755952708352,0.65,202.9,202.89,3.33632597]
[1755952708953,0.06,202.9,202.89,13.60302025]
[1755952710954,0.06,202.9,202.89,14.26903552]
[1755952711461,0.06,202.9,202.89,10.95669428]
[1755952711661,0.06,202.9,202.89,13.57958487]
[1755952714772,0.06,202.9,202.89,14.26958487]
[1755952715560,0.06,202.9,202.89,4.00289059]
[1755952715757,0.06,202.9,202.89,14.26958487]
[1755952716757,0.06,202.9,202.89,52.36958487]
[1755952717857,0.06,202.9,202.89,14.26958487]
[1755952718060,0.06,202.9,202.89,52.36958487]
[1755952719661,0.06,202.9,202.89,65.96517888]
[1755952720193,0.06,202.9,202.89,62.65228829]
[1755952720363,0.06,202.9,202.89,65.9669065]
[1755952720892,0.06,202.9,202.89,65.96675047]
[1755952729495,0.06,202.9,202.89,62.65228829]
[1755952729673,0.06,202.9,202.89,65.96685814]
[1755952731817,0.06,202.9,202.89,55.70016386]
[1755952732000,0.06,202.9,202.89,65.96685814]
[1755952734119,0.06,202.9,202.89,27.86685814]
[1755952734323,0.06,202.9,202.89,65.96685814]
[1755952735723,0.06,202.9,202.89,65.96970053]
[1755952737714,0.06,202.92,202.91,39.59559401]
[1755952737918,0.06,202.92,202.91,91.27970053]
[1755952738326,0.06,202.92,202.91,91.98970053]
[1755952738828,0.06,202.92,202.91,88.67228829]
[1755952739033,0.06,202.92,202.91,91.99453123]
[1755952739409,0.06,202.92,202.91,88.67228829]
[1755952739907,0.06,202.92,202.91,91.99361761]
[1755952740599,0.06,202.92,202.91,93.96585861]
[1755952740829,0.06,202.92,202.91,91.99361761]
[1755952741721,0.06,202.92,202.91,93.96585861]
[1755952742531,0.01147254,202.93,202.92,13.59559401]
[1755952742715,0.01147254,202.93,202.92,27.89361761]
[1755952744019,0.01147254,202.93,202.92,24.57228829]
[1755952744223,0.01147254,202.93,202.92,27.89009888]
[1755952744404,0.01147254,202.93,202.92,37.89009888]
[1755952745012,0.06,202.95,202.92,37.89009888]
[1755952745309,0.06,202.97,202.95,13.59559401]
[1755952745510,0.06,202.97,202.96,65.26009888]
[1755952746009,0.06,202.97,202.96,67.94165888]
[1755952746315,0.06,202.97,202.96,77.94165888]
[1755952747114,0.06,202.97,202.96,77.93332407]
[1755952747536,0.02206444,202.97,202.96,77.93332407]
[1755952748834,0.02206444,202.97,202.96,39.85332407]
[1755952749005,0.02206444,202.97,202.96,77.93332407]
[1755952749508,0.02206444,202.97,202.96,77.7636189]
[1755952750031,0.02206444,202.97,202.96,39.6836189]
[1755952750209,0.02206444,202.97,202.96,77.7636189]
[1755952752510,0.2,202.99,202.98,26.0]
[1755952752712,0.2,202.99,202.98,65.25176407]
[1755952753026,0.2,202.99,202.98,65.96176407]
[1755952753216,0.2,202.99,202.98,80.74700807]
[1755952754428,0.2,202.99,202.98,80.03700807]
[1755952754639,0.2,202.99,202.98,80.74700807]
[1755952754841,0.2,202.99,202.98,31.69031379]
[1755952755144,0.2,202.99,202.98,65.25176407]
[1755952756551,0.2,202.99,202.98,61.94228829]
[1755952756844,0.2,202.99,202.98,65.24373188]
[1755952757355,0.2,202.99,202.98,65.24369357]
[1755952757734,0.2,202.99,202.98,65.95369357]
[1755952758958,0.2,202.99,202.98,67.92525357]
[1755952759959,0.2,202.99,202.98,67.92402524]
[1755952760249,0.79,202.99,202.98,29.30017695]
[1755952760556,0.79,202.99,202.98,77.62687123]
[1755952760862,0.2,202.99,202.98,77.62687123]
[1755952763055,0.2,202.99,202.98,91.22246524]
[1755952763862,0.2,202.99,202.98,53.16246524]
[1755952764247,0.2,202.99,202.98,91.22246524]
[1755952764870,0.79,202.99,202.98,91.22246524]
[1755952765037,0.2,202.99,202.98,91.22246524]
[1755952765974,0.79,202.99,202.98,74.32669428]
[1755952766155,0.79,202.99,202.98,77.62724079]
[1755952766338,0.79,202.99,202.98,67.36054651]
[1755952766537,0.2,202.99,202.98,77.66691436]
[1755952766970,0.79,202.99,202.98,67.40022008]
[1755952767167,0.79,202.99,202.98,77.66691436]
[1755952767847,0.2,202.99,202.98,77.66691436]
[1755952769279,0.2,202.99,202.98,67.40022008]
[1755952769480,0.2,202.99,202.98,77.66691436]
[1755952769980,0.2,202.99,202.98,91.91250837]
[1755952770479,0.2,202.99,202.98,91.26250837]
[1755952772304,0.2,202.99,202.98,91.91250837]
[1755952772678,0.2,202.99,202.98,91.26250837]
[1755952773072,0.2,202.99,202.98,91.91250837]
[1755952775225,0.2,202.99,202.98,81.64581409]
[1755952775367,0.2,202.99,202.98,91.91528773]
[1755952776170,0.2,202.99,202.98,91.26528773]
[1755952776689,0.2,202.99,202.98,91.91528773]
[1755952779190,0.2,202.99,202.98,91.91928676]
[1755952779894,0.2,202.99,202.98,80.29535075]
[1755952780266,0.2,202.99,202.98,76.57210547]
[1755952781474,0.2,202.99,202.98,76.57479407]
[1755952782977,0.2,202.99,202.98,31.32134507]
[1755952783189,0.2,202.99,202.98,75.92479407]
[1755952783980,0.79,202.99,202.98,29.34968707]
[1755952784305,0.79,202.99,202.98,67.40968707]
[1755952784599,0.79,202.99,202.98,70.603449]
[1755952784792,0.79,202.99,202.98,73.95943299]
[1755952784992,0.79,202.99,202.98,67.41598399]
[1755952785189,0.79,202.99,202.98,29.35601572]
[1755952785402,0.79,202.99,202.98,67.41601572]
[1755952787304,0.2,202.99,202.98,67.41601572]
[1755952787992,0.2,202.99,202.98,67.415956]
[1755952790006,0.2,202.99,202.98,73.959405]
[1755952790912,0.2,202.99,202.98,35.899405]
[1755952791209,0.2,202.99,202.98,73.959405]
[1755952791608,0.2,202.99,202.98,74.609405]
[1755952793304,0.2,202.99,202.98,76.58116]
[1755952793898,0.2,202.99,202.98,73.225204]